fUSD/lending_fUSD_20240125
["ID","MTS","AMOUNT","RATE_DAILY","PERIOD"]
[312726225,1706189461448,-500.0,0.0005041,31]
[312726226,1706189461457,-1771.9,0.0005041,31]
[312726227,1706189461466,-634.99,0.0005041,31]
[312726228,1706189461475,-625.26783671,0.00050465,14]
[312726229,1706189461485,-180.84621878,0.00050467,60]
[312726230,1706189461494,-150.0,0.00050469,2]
[312726231,1706189461503,-500.0,0.00050493,120]
[312726232,1706189461513,-151.0125,0.00050498,24]
[312726233,1706189461522,-200.0,0.000505,28]
[312726234,1706189461531,-153.90506382,0.00050525,60]
[312726235,1706189461540,-150.0,0.00050536,7]
[312726236,1706189461549,-150.97307919,0.00050548,60]
[312726237,1706189461558,-160.33309341,0.00050567,60]
[312726238,1706189461568,-151.0125,0.00050598,24]
[312726239,1706189461578,-180.84621878,0.000506,60]
[312726240,1706189461587,-153.46651434,0.00050634,60]
[312726241,1706189461597,-711.63136887,0.00050639,10]
[312726242,1706189461606,-832.27573461,0.00050681,2]
[312726243,1706189461619,-500.0,0.00050684,14]
[312726244,1706189461628,-500.0,0.00050684,31]
[312726245,1706189461638,-500.0,0.00050684,31]
[312726246,1706189461647,-578.99,0.00050684,31]
[312726247,1706189461657,-732.03,0.00050684,31]
[312726248,1706189461666,-500.0,0.00050684,2]
[312726249,1706189461675,-662.95,0.00050684,31]
[312726250,1706189461684,-500.0,0.00050684,2]
[312726251,1706189461694,-500.0,0.00050684,31]
[312726252,1706189461704,-500.0,0.00050684,31]
[312726253,1706189461713,-500.0,0.00050684,31]
[312726254,1706189461724,-500.0,0.00050684,31]
[312726255,1706189461734,-151.0,0.00050684,14]
[312726256,1706189461744,-500.0,0.00050684,31]
[312726257,1706189461754,-500.0,0.00050684,31]
[312726258,1706189461765,-500.0,0.00050684,31]
[312726259,1706189461774,-500.0,0.00050684,31]
[312726260,1706189461785,-500.0,0.00050684,31]
[312726261,1706189461795,-500.0,0.00050684,31]
[312726262,1706189461805,-500.0,0.00050684,31]
[312726263,1706189461816,-500.0,0.00050684,31]
[312726264,1706189461825,-500.0,0.00050684,31]
[312726265,1706189461834,-706.68,0.00050684,31]
[312726266,1706189461844,-500.0,0.00050684,31]
[312726267,1706189461854,-563.11678339,0.00050684,31]
[312726268,1706189461864,-500.0,0.00050684,31]
[312726269,1706189461873,-500.0,0.00050684,31]
[312726270,1706189461884,-511.95,0.00050684,31]
[312726271,1706189461893,-500.0,0.00050684,31]
[312726272,1706189461902,-500.0,0.00050684,31]
[312726273,1706189461911,-500.0,0.00050684,31]
[312726274,1706189461920,-500.0,0.00050684,31]
[312726275,1706189461929,-500.0,0.00050684,31]
[312726276,1706189461938,-500.0,0.00050684,31]
[312726277,1706189461947,-500.0,0.00050684,31]
[312726278,1706189461956,-500.0,0.00050684,31]
[312726279,1706189461965,-666.0,0.00050684,2]
[312726280,1706189461974,-500.0,0.00050684,31]
[312726281,1706189461983,-500.0,0.00050684,31]
[312726282,1706189461992,-500.0,0.00050684,31]
[312726283,1706189462001,-500.0,0.00050684,31]
[312726284,1706189462010,-586.25,0.00050684,31]
[312726285,1706189462019,-500.0,0.00050684,31]
[312726286,1706189462028,-500.0,0.00050684,31]
[312726287,1706189462038,-500.0,0.00050684,31]
[312726288,1706189462047,-500.0,0.00050684,31]
[312726289,1706189462056,-500.0,0.00050684,31]
[312726290,1706189462065,-500.0,0.00050684,31]
[312726291,1706189462075,-847.89,0.00050684,31]
[312726292,1706189462085,-500.0,0.00050684,31]
[312726293,1706189462095,-500.0,0.00050684,31]
[312726294,1706189462105,-847.27,0.00050684,31]
[312726295,1706189462116,-553.41,0.00050684,2]
[312726296,1706189462127,-500.0,0.00050684,31]
[312726297,1706189462137,-500.0,0.00050684,31]
[312726298,1706189462147,-500.0,0.00050684,31]
[312726299,1706189462156,-552.54,0.00050684,31]
[312726300,1706189462166,-500.0,0.00050684,31]
[312726301,1706189462176,-500.0,0.00050684,31]
[312726302,1706189462186,-500.0,0.00050684,31]
[312726303,1706189462196,-500.0,0.00050684,31]
[312726304,1706189462205,-309.31943093,0.00050684,31]
[312726305,1706189462215,-500.0,0.00050684,31]
[312726306,1706189462224,-500.0,0.00050684,31]
[312726307,1706189462233,-500.0,0.00050684,31]
[312726308,1706189462242,-500.0,0.00050684,31]
[312726309,1706189462251,-500.0,0.00050684,31]
[312726310,1706189462261,-500.0,0.00050684,10]
[312726311,1706189462271,-533.04,0.00050684,31]
[312726312,1706189462280,-500.0,0.00050684,31]
[312726313,1706189462289,-500.0,0.00050684,31]
[312726314,1706189462299,-500.0,0.00050684,31]
[312726315,1706189462309,-500.0,0.00050684,31]
[312726316,1706189462319,-500.0,0.00050684,31]
[312726317,1706189462328,-500.0,0.00050684,31]
[312726318,1706189462337,-500.0,0.00050684,31]
[312726319,1706189462346,-500.0,0.00050684,31]
[312726320,1706189462355,-500.0,0.00050684,31]
[312726321,1706189462365,-1263.99,0.00050684,31]
[312726322,1706189462374,-418.49352089,0.00050684,31]
[312726323,1706189462383,-500.0,0.00050684,31]
[312726324,1706189462393,-500.0,0.00050684,31]
[312726325,1706189462403,-500.0,0.00050684,31]
[312726326,1706189462412,-500.0,0.00050684,31]
[312726327,1706189462423,-500.0,0.00050684,31]
[312726328,1706189462433,-500.0,0.00050684,31]
[312726329,1706189462442,-500.0,0.00050684,31]
[312726330,1706189462451,-500.0,0.00050684,31]
[312726331,1706189462461,-4443.62,0.00050684,31]
[312726332,1706189462472,-500.0,0.00050684,31]
[312726333,1706189462481,-500.0,0.00050684,31]
[312726334,1706189462491,-500.0,0.00050684,31]
[312726335,1706189462502,-500.0,0.00050684,31]
[312726336,1706189462512,-500.0,0.00050684,31]
[312726337,1706189462522,-5133.55,0.00050684,5]
[312726338,1706189462533,-876.57,0.00050684,31]
[312726339,1706189462544,-500.0,0.00050684,31]
[312726340,1706189462554,-793.58,0.00050684,31]
[312726341,1706189462565,-500.0,0.00050684,31]
[312726342,1706189462575,-500.0,0.00050684,31]
[312726343,1706189462585,-605.29,0.00050684,31]
[312726344,1706189462595,-500.0,0.00050684,31]
[312726345,1706189462604,-500.0,0.00050684,31]
[312726346,1706189462614,-798.73,0.00050684,31]
[312726347,1706189462624,-741.46,0.00050684,31]
[312726348,1706189462636,-500.0,0.00050684,31]
[312726349,1706189462645,-500.0,0.00050684,31]
[312726350,1706189462655,-500.0,0.00050684,31]
[312726351,1706189462665,-500.0,0.00050684,31]
[312726352,1706189462674,-522.59,0.00050684,31]
[312726353,1706189462684,-500.0,0.00050684,31]
[312726354,1706189462693,-500.0,0.00050684,31]
[312726355,1706189462703,-1440.42,0.00050684,31]
[312726356,1706189462713,-500.0,0.00050684,31]
[312726357,1706189462723,-3848.63,0.00050684,31]
[312726358,1706189462733,-1000.0,0.00050684,7]
[312726359,1706189462742,-659.44,0.00050684,31]
[312726360,1706189462752,-960.66,0.00050684,31]
[312726361,1706189462808,-1413.54,0.00050684,31]
[312726362,1706189462818,-3294.47,0.00050684,31]
[312726363,1706189462828,-557.9,0.00050684,31]
[312726364,1706189462837,-500.0,0.00050684,31]
[312726365,1706189462846,-500.0,0.00050684,31]
[312726366,1706189462855,-418.80915098,0.00050684,31]
[312726367,1706189462865,-500.0,0.00050684,31]
[312726368,1706189462874,-500.0,0.00050684,31]
[312726369,1706189462883,-500.0,0.00050684,31]
[312726370,1706189462892,-500.0,0.00050684,31]
[312726371,1706189462902,-500.0,0.00050684,31]
[312726372,1706189462912,-500.0,0.00050684,31]
[312726373,1706189462921,-500.0,0.00050684,31]
[312726374,1706189462930,-500.0,0.00050684,31]
[312726375,1706189462939,-500.0,0.00050684,31]
[312726376,1706189462949,-500.0,0.00050684,31]
[312726377,1706189462958,-500.0,0.00050684,31]
[312726378,1706189462968,-658.39,0.00050684,31]
[312726379,1706189462977,-500.0,0.00050684,31]
[312726380,1706189462987,-500.0,0.00050684,31]
[312726381,1706189462999,-707.38,0.00050684,31]
[312726382,1706189463008,-806.49,0.00050684,31]
[312726383,1706189463019,-500.0,0.00050684,31]
[312726384,1706189463027,-500.0,0.00050684,31]
[312726385,1706189463036,-500.0,0.00050684,31]
[312726386,1706189463045,-348.5186334,0.00050684,31]
[312726387,1706189463055,-534.89,0.00050684,31]
[312726388,1706189463065,-1000.0,0.00050684,7]
[312726389,1706189463075,-500.0,0.00050684,31]
[312726390,1706189463087,-500.0,0.00050684,31]
[312726391,1706189463097,-500.0,0.00050684,31]
[312726392,1706189463107,-500.0,0.00050684,31]
[312726393,1706189463117,-500.0,0.00050684,31]
[312726394,1706189463126,-2660.25,0.00050684,31]
[312726395,1706189463134,-500.0,0.00050684,31]
[312726396,1706189463143,-438.91988691,0.00050684,31]
[312726397,1706189463152,-500.0,0.00050684,31]
[312726398,1706189463162,-500.0,0.00050684,31]
[312726399,1706189463171,-500.0,0.00050684,31]
[312726400,1706189463180,-654.66,0.00050684,31]
[312726401,1706189463191,-500.0,0.00050684,31]
[312726402,1706189463200,-1220.14,0.00050684,31]
[312726403,1706189463210,-500.0,0.00050684,31]
[312726404,1706189463220,-500.0,0.00050684,31]
[312726405,1706189463231,-500.0,0.00050684,31]
[312726406,1706189463240,-500.0,0.00050684,31]
[312726407,1706189463249,-697.52,0.00050684,31]
[312726408,1706189463259,-1219.85,0.00050684,31]
[312726409,1706189463269,-500.0,0.00050684,31]
[312726410,1706189463278,-500.0,0.00050684,31]
[312726411,1706189463288,-500.0,0.00050684,31]
[312726412,1706189463297,-500.0,0.00050684,31]
[312726413,1706189463307,-2328.6,0.00050684,31]
[312726414,1706189463317,-500.0,0.00050684,31]
[312726415,1706189463328,-500.0,0.00050684,31]
[312726416,1706189463338,-500.0,0.00050684,31]
[312726417,1706189463349,-500.0,0.00050684,31]
[312726418,1706189463359,-553.77,0.00050684,31]
[312726419,1706189463368,-2392.7,0.00050684,31]
[312726420,1706189463377,-500.0,0.00050684,31]
[312726421,1706189463387,-742.25,0.00050684,31]
[312726422,1706189463398,-500.0,0.00050684,31]
[312726423,1706189463407,-500.0,0.00050684,31]
[312726424,1706189463416,-500.0,0.00050684,31]
[312726425,1706189463426,-500.0,0.00050684,31]
[312726426,1706189463435,-500.0,0.00050684,31]
[312726427,1706189463445,-500.0,0.00050684,31]
[312726428,1706189463454,-766.81,0.00050684,31]
[312726429,1706189463464,-481.33274385,0.00050684,31]
[312726430,1706189463473,-500.0,0.00050684,31]
[312726431,1706189463483,-500.0,0.00050684,31]
[312726432,1706189463493,-500.0,0.00050684,31]
[312726433,1706189463502,-500.0,0.00050684,31]
[312726434,1706189463511,-500.0,0.00050684,31]
[312726435,1706189463520,-720.22,0.00050684,31]
[312726436,1706189463529,-500.0,0.00050684,31]
[312726437,1706189463538,-506.85,0.00050684,31]
[312726438,1706189463546,-2585.71,0.00050684,31]
[312726439,1706189463556,-500.0,0.00050684,31]
[312726440,1706189463566,-895.53,0.00050684,2]
[312726441,1706189463575,-500.0,0.00050684,31]
[312726442,1706189463588,-500.0,0.00050684,31]
[312726443,1706189463597,-1966.47,0.00050684,30]
[312726444,1706189463607,-500.0,0.00050684,31]
[312726445,1706189463617,-500.0,0.00050684,31]
[312726446,1706189463628,-500.0,0.00050684,31]
[312726447,1706189463638,-500.0,0.00050684,31]
[312726448,1706189463647,-568.09,0.00050684,31]
[312726449,1706189463657,-500.0,0.00050684,31]
[312726450,1706189463668,-631.71175998,0.00050684,31]
[312726451,1706189463678,-1097.13,0.00050684,31]
[312726452,1706189463688,-500.0,0.00050684,31]
[312726453,1706189463698,-563.0,0.00050684,31]
[312726454,1706189463710,-678.21,0.00050684,31]
[312726455,1706189463720,-500.0,0.00050684,31]
[312726456,1706189463729,-500.0,0.00050684,31]
[312726457,1706189463737,-505.22,0.00050684,31]
[312726458,1706189463746,-1184.05,0.00050684,7]
[312726459,1706189463756,-500.0,0.00050684,31]
[312726460,1706189463765,-1978.23,0.00050684,31]
[312726461,1706189463774,-1000.0,0.00050684,30]
[312726462,1706189463783,-500.0,0.00050684,31]
[312726463,1706189463792,-775.02,0.00050684,31]
[312726464,1706189463802,-500.0,0.00050684,31]
[312726465,1706189463811,-500.0,0.00050684,31]
[312726466,1706189463821,-500.0,0.00050684,31]
[312726467,1706189463833,-500.0,0.00050684,31]
[312726468,1706189463842,-500.0,0.00050684,31]
[312726469,1706189463852,-500.0,0.00050684,31]
[312726470,1706189463862,-500.0,0.00050684,31]
[312726471,1706189463871,-563.64,0.00050684,31]
[312726472,1706189463880,-1788.81,0.00050684,31]
[312726473,1706189463890,-500.0,0.00050684,31]
[312726474,1706189463900,-800.86,0.00050684,31]
[312726475,1706189463909,-824.87,0.00050684,31]
[312726476,1706189463919,-500.0,0.00050684,31]
[312726477,1706189463928,-500.0,0.00050684,31]
[312726478,1706189463939,-500.0,0.00050684,31]
[312726479,1706189463950,-500.0,0.00050684,31]
[312726480,1706189463961,-500.0,0.00050684,31]
[312726481,1706189463970,-624.88,0.00050684,31]
[312726482,1706189463980,-500.0,0.00050684,31]
[312726483,1706189463989,-500.0,0.00050684,31]
[312726484,1706189463999,-500.0,0.00050684,31]
[312726485,1706189464008,-500.0,0.00050684,31]
[312726486,1706189464017,-500.0,0.00050684,31]
[312726487,1706189464027,-340.21652461,0.00050684,10]
[312726488,1706189464038,-500.0,0.00050684,31]
[312726489,1706189464049,-500.0,0.00050684,31]
[312726490,1706189464060,-3861.01,0.00050684,5]
[312726491,1706189464070,-500.0,0.00050684,31]
[312726492,1706189464081,-500.0,0.00050684,31]
[312726493,1706189464091,-500.0,0.00050684,31]
[312726494,1706189464100,-562.52,0.00050684,31]
[312726495,1706189464109,-702.37,0.00050684,31]
[312726496,1706189464118,-500.0,0.00050684,31]
[312726497,1706189464127,-500.0,0.00050684,31]
[312726498,1706189464135,-500.0,0.00050684,31]
[312726499,1706189464144,-381.42526774,0.00050684,31]
[312726500,1706189464195,-500.0,0.00050684,31]
[312726501,1706189464205,-500.0,0.00050684,31]
[312726502,1706189464215,-1562.8,0.00050684,31]
[312726503,1706189464225,-500.0,0.00050684,31]
[312726504,1706189464235,-500.0,0.00050684,31]
[312726505,1706189464244,-500.0,0.00050684,31]
[312726506,1706189464253,-729.44,0.00050684,31]
[312726507,1706189464262,-500.0,0.00050684,31]
[312726508,1706189464271,-674.25,0.00050684,31]
[312726509,1706189464280,-500.0,0.00050684,31]
[312726510,1706189464290,-500.0,0.00050684,31]
[312726511,1706189464300,-500.0,0.00050684,31]
[312726512,1706189464309,-1360.58,0.00050684,31]
[312726513,1706189464318,-530.21,0.00050684,31]
[312726514,1706189464329,-694.83,0.00050684,2]
[312726515,1706189464338,-500.0,0.00050684,31]
[312726516,1706189464347,-500.0,0.00050684,31]
[312726517,1706189464356,-500.0,0.00050684,31]
[312726518,1706189464366,-650.93,0.00050684,31]
[312726519,1706189464375,-622.63,0.00050684,31]
[312726520,1706189464385,-1172.34,0.00050684,31]
[312726521,1706189464394,-500.0,0.00050684,31]
[312726522,1706189464404,-500.0,0.00050684,31]
[312726523,1706189464413,-1372.24,0.00050684,31]
[312726524,1706189464423,-500.0,0.00050684,31]
[312726525,1706189464432,-500.0,0.00050684,31]
[312726526,1706189464442,-500.0,0.00050684,31]
[312726527,1706189464451,-500.0,0.00050684,31]
[312726528,1706189464460,-500.0,0.00050684,31]
[312726529,1706189464468,-500.0,0.00050684,31]
[312726530,1706189464478,-1771.9,0.00050684,31]
[312726531,1706189464487,-634.99,0.00050684,31]
[312726532,1706189464496,-230.0,0.00050685,10]
[312726533,1706189464505,-193.0,0.00050685,5]
[312726534,1706189464514,-151.0125,0.00050698,24]
[312726535,1706189464523,-1007.037505,0.000507,20]
[312726536,1706189464532,-469.01926877,0.000507,7]
[312726537,1706189464541,-8000.0,0.000507,5]
[312726538,1706189464550,-1089.46425642,0.00050744,5]
[312726539,1706189464559,-1099.44419759,0.00050744,5]
[312726540,1706189464568,-200.0,0.0005076,28]
[312726541,1706189464579,-809.83846744,0.00050783,14]
[312726542,1706189464588,-500.0,0.00050794,120]
[312726543,1706189464598,-150.0125,0.00050798,24]
[312726544,1706189464607,-10414.48682627,0.000508,15]
[312726545,1706189464618,-16123.23317133,0.000508,7]
[312726546,1706189464628,-180.84621878,0.000508,60]
[312726547,1706189464640,-150.0,0.00050873,7]
[312726548,1706189464650,-1077.0,0.0005089,2]
[312726549,1706189464661,-272.0,0.0005089,2]
[312726550,1706189464671,-300.0,0.00050897,7]
[312726551,1706189464683,-151.0125,0.00050898,24]
[312726552,1706189464693,-500.0,0.00050958,14]
[312726553,1706189464702,-500.0,0.00050958,31]
[312726554,1706189464714,-500.0,0.00050958,31]
[312726555,1706189464725,-578.99,0.00050958,31]
[312726556,1706189464735,-732.03,0.00050958,31]
[312726557,1706189464745,-500.0,0.00050958,2]
[312726558,1706189464755,-662.95,0.00050958,31]
[312726559,1706189464765,-500.0,0.00050958,2]
[312726560,1706189464775,-500.0,0.00050958,31]
[312726561,1706189464784,-500.0,0.00050958,31]
[312726562,1706189464793,-500.0,0.00050958,31]
[312726563,1706189464803,-500.0,0.00050958,31]
[312726564,1706189464812,-500.0,0.00050958,31]
[312726565,1706189464822,-500.0,0.00050958,31]
[312726566,1706189464834,-500.0,0.00050958,31]
[312726567,1706189464843,-500.0,0.00050958,31]
[312726568,1706189464853,-500.0,0.00050958,31]
[312726569,1706189464862,-500.0,0.00050958,31]
[312726570,1706189464873,-500.0,0.00050958,31]
[312726571,1706189464883,-500.0,0.00050958,31]
[312726572,1706189464893,-500.0,0.00050958,31]
[312726573,1706189464902,-706.68,0.00050958,31]
[312726574,1706189464911,-500.0,0.00050958,31]
[312726575,1706189464920,-500.0,0.00050958,31]
[312726576,1706189464930,-500.0,0.00050958,31]
[312726577,1706189464939,-511.95,0.00050958,31]
[312726578,1706189464948,-500.0,0.00050958,31]
[312726579,1706189464957,-500.0,0.00050958,31]
[312726580,1706189464966,-500.0,0.00050958,31]
[312726581,1706189464975,-500.0,0.00050958,31]
[312726582,1706189464984,-500.0,0.00050958,31]
[312726583,1706189464993,-500.0,0.00050958,31]
[312726584,1706189465002,-500.0,0.00050958,31]
[312726585,1706189465011,-500.0,0.00050958,31]
[312726586,1706189465020,-500.0,0.00050958,31]
[312726587,1706189465030,-500.0,0.00050958,31]
[312726588,1706189465040,-500.0,0.00050958,31]
[312726589,1706189465049,-500.0,0.00050958,31]
[312726590,1706189465059,-586.25,0.00050958,31]
[312726591,1706189465068,-500.0,0.00050958,31]
[312726592,1706189465079,-500.0,0.00050958,31]
[312726593,1706189465088,-500.0,0.00050958,31]
[312726594,1706189465097,-500.0,0.00050958,31]
[312726595,1706189465106,-500.0,0.00050958,31]
[312726596,1706189465115,-500.0,0.00050958,31]
[312726597,1706189465125,-847.89,0.00050958,31]
[312726598,1706189465134,-500.0,0.00050958,31]
[312726599,1706189465143,-500.0,0.00050958,31]
[312726600,1706189465153,-847.27,0.00050958,31]
[312726601,1706189465163,-553.41,0.00050958,2]
[312726602,1706189465172,-343.59080123,0.00050958,31]
[312726603,1706189465182,-500.0,0.00050958,31]
[312726604,1706189465192,-500.0,0.00050958,31]
[312726605,1706189465202,-552.54,0.00050958,31]
[312726606,1706189465213,-500.0,0.00050958,31]
[312726607,1706189465223,-500.0,0.00050958,31]
[312726608,1706189465233,-500.0,0.00050958,31]
[312726609,1706189465243,-500.0,0.00050958,31]
[312726610,1706189465253,-500.0,0.00050958,31]
[312726611,1706189465264,-500.0,0.00050958,31]
[312726612,1706189465275,-500.0,0.00050958,31]
[312726613,1706189465285,-500.0,0.00050958,31]
[312726614,1706189465295,-500.0,0.00050958,31]
[312726615,1706189465305,-500.0,0.00050958,10]
[312726616,1706189465315,-533.04,0.00050958,31]
[312726617,1706189465325,-500.0,0.00050958,31]
[312726618,1706189465336,-500.0,0.00050958,31]
[312726619,1706189465346,-435.02514303,0.00050958,31]
[312726620,1706189465355,-500.0,0.00050958,31]
[312726621,1706189465365,-500.0,0.00050958,31]
[312726622,1706189465375,-500.0,0.00050958,31]
[312726623,1706189465385,-500.0,0.00050958,31]
[312726624,1706189465395,-500.0,0.00050958,31]
[312726625,1706189465405,-500.0,0.00050958,31]
[312726626,1706189465414,-1263.99,0.00050958,31]
[312726627,1706189465425,-500.0,0.00050958,31]
[312726628,1706189465435,-500.0,0.00050958,31]
[312726629,1706189465445,-500.0,0.00050958,31]
[312726630,1706189465455,-500.0,0.00050958,31]
[312726631,1706189465465,-500.0,0.00050958,31]
[312726632,1706189465475,-500.0,0.00050958,31]
[312726633,1706189465485,-500.0,0.00050958,31]
[312726634,1706189465495,-500.0,0.00050958,31]
[312726635,1706189465506,-4443.62,0.00050958,31]
[312726636,1706189465515,-500.0,0.00050958,31]
[312726637,1706189465525,-500.0,0.00050958,31]
[312726638,1706189465534,-500.0,0.00050958,31]
[312726639,1706189465544,-500.0,0.00050958,31]
[312726640,1706189465554,-500.0,0.00050958,31]
[312726641,1706189465563,-5133.55,0.00050958,5]
[312726642,1706189465573,-876.57,0.00050958,31]
[312726643,1706189465583,-500.0,0.00050958,31]
[312726644,1706189465593,-793.58,0.00050958,31]
[312726645,1706189465602,-500.0,0.00050958,31]
[312726646,1706189465612,-500.0,0.00050958,31]
[312726647,1706189465622,-605.29,0.00050958,31]
[312726648,1706189465634,-500.0,0.00050958,31]
[312726649,1706189465645,-500.0,0.00050958,31]
[312726650,1706189465654,-798.73,0.00050958,31]
[312726651,1706189465664,-741.46,0.00050958,31]
[312726652,1706189465675,-500.0,0.00050958,31]
[312726653,1706189465684,-500.0,0.00050958,31]
[312726654,1706189465694,-160.28247328,0.00050958,31]
[312726655,1706189465704,-500.0,0.00050958,31]
[312726656,1706189465714,-522.59,0.00050958,31]
[312726657,1706189465724,-500.0,0.00050958,31]
[312726658,1706189465733,-500.0,0.00050958,31]
[312726659,1706189465743,-1440.42,0.00050958,31]
[312726660,1706189465752,-500.0,0.00050958,31]
[312726661,1706189465762,-3848.63,0.00050958,31]
[312726662,1706189465771,-1000.0,0.00050958,7]
[312726663,1706189465781,-659.44,0.00050958,31]
[312726664,1706189465790,-960.66,0.00050958,31]
[312726665,1706189465801,-3294.47,0.00050958,31]
[312726666,1706189465810,-1413.54,0.00050958,31]
[312726667,1706189465820,-557.9,0.00050958,31]
[312726668,1706189465829,-500.0,0.00050958,31]
[312726669,1706189465839,-500.0,0.00050958,31]
[312726670,1706189465849,-500.0,0.00050958,31]
[312726671,1706189465858,-500.0,0.00050958,31]
[312726672,1706189465868,-500.0,0.00050958,31]
[312726673,1706189465877,-500.0,0.00050958,31]
[312726674,1706189465887,-479.86563894,0.00050958,31]
[312726675,1706189465896,-500.0,0.00050958,31]
[312726676,1706189465906,-500.0,0.00050958,31]
[312726677,1706189465915,-500.0,0.00050958,31]
[312726678,1706189465925,-500.0,0.00050958,31]
[312726679,1706189465934,-500.0,0.00050958,31]
[312726680,1706189465944,-500.0,0.00050958,31]
[312726681,1706189465953,-658.39,0.00050958,31]
[312726682,1706189465962,-500.0,0.00050958,31]
[312726683,1706189465972,-500.0,0.00050958,31]
[312726684,1706189465982,-707.38,0.00050958,31]
[312726685,1706189465992,-806.49,0.00050958,31]
[312726686,1706189466001,-500.0,0.00050958,31]
[312726687,1706189466011,-500.0,0.00050958,31]
[312726688,1706189466021,-500.0,0.00050958,31]
[312726689,1706189466030,-534.89,0.00050958,31]
[312726690,1706189466040,-1000.0,0.00050958,7]
[312726691,1706189466049,-248.45232859,0.00050958,31]
[312726692,1706189466058,-500.0,0.00050958,31]
[312726693,1706189466068,-500.0,0.00050958,31]
[312726694,1706189466078,-500.0,0.00050958,31]
[312726695,1706189466087,-500.0,0.00050958,31]
[312726696,1706189466097,-2660.25,0.00050958,31]
[312726697,1706189466106,-500.0,0.00050958,31]
[312726698,1706189466116,-500.0,0.00050958,31]
[312726699,1706189466125,-500.0,0.00050958,31]
[312726700,1706189466136,-500.0,0.00050958,31]
[312726701,1706189466148,-654.66,0.00050958,31]
[312726702,1706189466158,-500.0,0.00050958,31]
[312726703,1706189466168,-1220.14,0.00050958,31]
[312726704,1706189466178,-500.0,0.00050958,31]
[312726705,1706189466188,-500.0,0.00050958,31]
[312726706,1706189466198,-500.0,0.00050958,31]
[312726707,1706189466208,-500.0,0.00050958,31]
[312726708,1706189466219,-697.52,0.00050958,31]
[312726709,1706189466229,-1219.85,0.00050958,31]
[312726710,1706189466241,-500.0,0.00050958,31]
[312726711,1706189466252,-500.0,0.00050958,31]
[312726712,1706189466264,-500.0,0.00050958,31]
[312726713,1706189466275,-500.0,0.00050958,31]
[312726714,1706189466285,-2328.6,0.00050958,31]
[312726715,1706189466296,-500.0,0.00050958,31]
[312726716,1706189466306,-329.94514836,0.00050958,31]
[312726717,1706189466315,-500.0,0.00050958,31]
[312726718,1706189466325,-500.0,0.00050958,31]
[312726719,1706189466336,-553.77,0.00050958,31]
[312726720,1706189466346,-2392.7,0.00050958,31]
[312726721,1706189466356,-500.0,0.00050958,31]
[312726722,1706189466366,-742.25,0.00050958,31]
[312726723,1706189466376,-500.0,0.00050958,31]
[312726724,1706189466386,-500.0,0.00050958,31]